bitfinex/quotes_SOLUSD_20241126
["timestamp","ask_amount","ask_price","bid_price","bid_amount"]
[1732632396644,23.776884,232.44,232.38,5.0]
[1732632397036,23.776884,232.44,232.34,30.75375015]
[1732632397246,30.05585015,232.45,232.34,30.75375015]
[1732632397247,25.75375015,232.41,232.35,5.0]
[1732632397455,15.4685,232.48,232.38,25.75375015]
[1732632397627,23.776884,232.46,232.38,25.75375015]
[1732632397825,23.776884,232.46,232.37,5.0]
[1732632398136,23.776884,232.43,232.38,5.0]
[1732632398530,23.776884,232.43,232.34,25.75375015]
[1732632398725,23.776884,232.41,232.33,10.0]
[1732632398928,15.0556,232.47,232.33,10.0]
[1732632398929,23.776884,232.37,232.33,5.0]
[1732632399127,23.776884,232.41,232.33,5.0]
[1732632399437,30.05665015,232.4,232.33,5.0]
[1732632399636,23.776884,232.39,232.33,5.0]
[1732632399941,23.776884,232.39,232.33,10.0]
[1732632400250,4.3025,232.42,232.36,30.75375015]
[1732632400433,4.3025,232.42,232.37,5.0]
[1732632400950,4.3025,232.42,232.36,25.75375015]
[1732632401249,4.302,232.45,232.38,5.0]
[1732632401438,25.75375015,232.44,232.34,35.75375015]
[1732632401743,15.057,232.45,232.34,30.75375015]
[1732632401744,25.75375015,232.42,232.34,30.75375015]
[1732632401952,25.75375015,232.4,232.34,5.0]
[1732632402158,23.776884,232.37,232.3,25.75375015]
[1732632402456,23.776884,232.35,232.28,25.75375015]
[1732632402643,23.776884,232.37,232.28,30.75375015]
[1732632402829,25.75375015,232.34,232.26,25.75375015]
[1732632403132,23.776884,232.33,232.26,25.75375015]
[1732632403327,4.3044,232.32,232.28,25.75375015]
[1732632403532,23.776884,232.31,232.28,30.75375015]
[1732632403935,4.3044,232.32,232.28,30.75375015]
[1732632404231,25.75375015,232.38,232.3,25.75375015]
[1732632404232,23.776884,232.34,232.3,25.75375015]
[1732632404432,23.776884,232.34,232.31,5.0]
[1732632404651,23.776884,232.34,232.22,5.0]
[1732632404652,23.776884,232.31,232.22,5.0]
[1732632404832,23.776884,232.31,232.17,5.0]
[1732632404833,23.776884,232.26,232.18,25.75375015]
[1732632405034,23.776884,232.26,232.2,25.75375015]
[1732632405345,28.081584,232.3,232.24,25.75375015]
[1732632405554,28.081084,232.33,232.26,25.75375015]
[1732632406147,28.081084,232.33,232.28,25.75375015]
[1732632406446,28.081084,232.33,232.16,10.7684]
[1732632406447,64.59533415,232.33,232.24,25.75375015]
[1732632406750,38.841584,232.33,232.26,25.75375015]
[1732632406956,64.59533415,232.33,232.24,30.75375015]
[1732632407132,64.59533415,232.33,232.24,25.75375015]
[1732632407327,64.59533415,232.33,232.24,30.75375015]
[1732632407555,28.081084,232.33,232.26,25.75375015]
[1732632408053,4.3042,232.33,232.28,25.75375015]
[1732632408441,4.3042,232.33,232.28,30.75375015]
[1732632408646,4.3042,232.33,232.29,5.0]
[1732632409029,4.3042,232.33,232.25,5.0]
[1732632409030,30.05795015,232.33,232.25,5.0]
[1732632409230,23.776884,232.32,232.26,10.0]
[1732632409567,4.3045,232.31,232.26,35.75375015]
[1732632409850,4.3045,232.31,232.24,30.75375015]
[1732632410055,23.776884,232.3,232.23,5.0]
[1732632410254,23.776884,232.3,232.25,5.0]
[1732632410458,23.776884,232.3,232.23,5.0]
[1732632410864,23.776884,232.3,232.24,5.0]
[1732632411161,23.776884,232.3,232.22,30.75375015]
[1732632411463,23.776884,232.3,232.24,5.0]
[1732632411759,4.3049,232.29,232.24,5.0]
[1732632411961,4.3049,232.29,232.22,25.75375015]
[1732632412161,4.3049,232.29,232.24,5.0]
[1732632413063,23.776884,232.3,232.24,30.75375015]
[1732632413239,4.3047,232.31,232.26,30.75375015]
[1732632413440,25.75375015,232.35,232.27,5.0]
[1732632413739,4.3042,232.33,232.27,5.0]
[1732632413939,30.05795015,232.33,232.27,5.0]
[1732632414162,30.05795015,232.33,232.26,5.0]
[1732632414357,30.05795015,232.33,232.25,5.0]
[1732632414863,25.75375015,232.3,232.25,5.0]
[1732632415044,25.75375015,232.32,232.25,5.0]
[1732632415240,25.75375015,232.32,232.24,5.0]
[1732632415441,25.75375015,232.32,232.25,5.0]
[1732632415742,4.3042,232.33,232.28,25.75375015]
[1732632416450,21.5027,232.53,232.32,30.75375015]
[1732632416451,4.3031,232.39,232.32,30.75375015]
[1732632416871,6.11354258,232.39,232.32,30.75375015]
[1732632417160,23.776884,232.38,232.3,25.75375015]
[1732632417371,23.776884,232.38,232.32,30.75375015]
[1732632417567,4.3034,232.37,232.32,30.75375015]
[1732632417776,4.3034,232.37,232.34,25.75375015]
[1732632418061,4.3033,232.38,232.34,25.75375015]
[1732632419458,4.3033,232.38,232.34,30.75375015]
[1732632419863,15.0588,232.42,232.34,30.75375015]
[1732632420247,15.0588,232.42,232.34,35.75375015]
[1732632420456,15.0588,232.42,232.34,30.75375015]
[1732632420659,15.0588,232.42,232.34,25.75375015]
[1732632420852,25.75375015,232.41,232.32,25.75375015]
[1732632421047,15.0588,232.42,232.34,30.75375015]
[1732632421250,4.3025,232.42,232.4,25.75375015]
[1732632421466,0.75,232.45,232.41,5.0]
[1732632421649,5.052,232.45,232.43,25.75375015]
[1732632421845,5.052,232.45,232.41,25.75375015]
[1732632422062,5.052,232.45,232.42,5.0]
[1732632422861,0.75,232.45,232.42,5.0]
[1732632423168,0.75,232.45,232.43,5.0]
[1732632423352,5.052,232.45,232.42,5.0]
[1732632423555,0.75,232.45,232.43,30.75375015]
[1732632423871,0.75,232.45,232.43,5.0]
[1732632424458,0.75,232.45,232.43,10.0]
[1732632424959,0.75,232.45,232.43,5.0]
[1732632425163,0.75,232.45,232.43,10.0]
[1732632425364,0.75,232.45,232.43,35.75375015]
[1732632425970,0.75,232.45,232.44,5.0]
[1732632426177,0.75,232.45,232.44,30.75375015]
[1732632426466,1.80663403,232.53,232.49,5.0]
[1732632426679,1.80663403,232.53,232.45,6.5892]
[1732632426680,19.8197,232.75,232.61,5.0]
[1732632426876,25.75375015,232.68,232.58,30.75375015]
[1732632427163,25.75375015,232.62,232.53,25.75375015]
[1732632427543,25.75375015,232.58,232.5,25.75375015]
[1732632427749,25.75375015,232.58,232.5,35.75375015]
[1732632427959,4.2992,232.6,232.54,10.0]
[1732632428362,25.75375015,232.6,232.57,5.0]
[1732632428661,25.75375015,232.58,232.54,5.0]
[1732632429647,23.776884,232.57,232.54,5.0]
[1732632429951,25.75375015,232.56,232.54,5.0]
[1732632430150,28.076784,232.57,232.54,5.0]
[1732632430375,25.75375015,232.6,232.56,10.0]
[1732632430673,4.2983,232.65,232.56,5.0]
[1732632430853,25.75375015,232.61,232.57,5.0]
[1732632431179,4.2983,232.65,232.56,5.0]
[1732632431180,30.05205015,232.65,232.61,10.0]
[1732632431356,25.75375015,232.65,232.61,10.0]
[1732632431860,25.75375015,232.63,232.55,5.0]
[1732632432061,25.75375015,232.59,232.56,5.0]
[1732632432258,30.05285015,232.61,232.56,5.0]
[1732632432461,25.75375015,232.59,232.56,5.0]
[1732632433076,23.776884,232.6,232.56,5.0]
[1732632433671,25.75375015,232.57,232.53,10.0]
[1732632433869,23.776884,232.6,232.53,10.0]
[1732632433870,23.776884,232.58,232.53,10.0]
[1732632434260,28.076484,232.58,232.53,10.0]
[1732632434458,23.776884,232.56,232.53,10.0]
[1732632434983,25.75375015,232.54,232.53,5.0]
[1732632435174,23.776884,232.53,232.46,5.0]
[1732632435473,23.776884,232.53,232.45,11.5892]
[1732632435474,23.776884,232.46,232.38,5.0]
[1732632435680,25.75375015,232.4,232.36,5.0]
[1732632435885,25.75375015,232.38,232.34,5.0]
[1732632436055,23.776884,232.46,232.39,10.0]
[1732632436254,23.776884,232.46,232.34,25.75375015]
[1732632436255,23.776884,232.46,232.41,5.0]
[1732632436473,28.078784,232.46,232.43,5.0]
[1732632436678,30.05545015,232.47,232.43,10.0]
[1732632437257,30.05545015,232.47,232.38,5.0]
[1732632437258,25.75375015,232.45,232.38,5.0]
[1732632437454,23.776884,232.44,232.38,5.0]
[1732632437675,25.75375015,232.41,232.38,5.0]
[1732632437880,23.776884,232.44,232.36,5.0]
[1732632438075,23.776884,232.42,232.34,5.0]
[1732632438483,15.057,232.45,232.34,5.0]
[1732632438484,23.776884,232.44,232.36,5.0]
[1732632438664,23.776884,232.44,232.34,5.0]
[1732632439066,25.75375015,232.36,232.34,10.0]
[1732632439882,25.75375015,232.36,232.34,5.0]
[1732632440083,25.75375015,232.36,232.34,10.0]
[1732632440988,4.3012,232.49,232.43,5.0]
[1732632441179,21.4979,232.58,232.43,5.0]
[1732632441180,25.75375015,232.51,232.47,5.0]
[1732632441362,25.75375015,232.55,232.51,5.0]
[1732632441683,25.75375015,232.53,232.51,5.0]
[1732632441873,25.75375015,232.53,232.45,5.0]
[1732632442074,25.75375015,232.53,232.43,6.0699]
[1732632442075,25.75375015,232.56,232.46,10.0]
[1732632442277,25.75375015,232.46,232.45,5.0]
[1732632442462,25.75375015,232.46,232.43,11.0699]
[1732632442787,25.75375015,232.46,232.44,5.0]
[1732632443289,15.0504,232.55,232.43,6.0699]
[1732632443290,25.75375015,232.48,232.46,5.0]
[1732632443492,23.776884,232.49,232.46,5.0]
[1732632444091,25.75375015,232.52,232.48,5.0]
[1732632444289,25.75375015,232.54,232.53,5.0]
[1732632444477,25.75375015,232.56,232.53,5.0]
[1732632444673,25.75375015,232.56,232.53,10.0]
[1732632444882,25.75375015,232.54,232.51,10.0]
[1732632445084,25.75375015,232.56,232.53,10.0]
[1732632445287,25.75375015,232.56,232.43,6.0699]
[1732632445288,25.75375015,232.54,232.51,5.0]
[1732632445473,25.75375015,232.52,232.5,5.0]
[1732632445867,25.75375015,232.56,232.53,5.0]
[1732632446119,25.75375015,232.54,232.49,10.0]
[1732632446273,25.75375015,232.52,232.49,5.0]
[1732632446478,25.75375015,232.5,232.49,10.0]
[1732632446994,25.75375015,232.52,232.49,10.0]
[1732632447377,23.776884,232.51,232.49,5.0]
[1732632447575,25.75375015,232.52,232.49,5.0]
[1732632447782,25.75375015,232.5,232.49,5.0]
[1732632448086,49.53063415,232.5,232.49,5.0]
[1732632448484,49.53063415,232.5,232.49,10.0]
[1732632448674,49.53063415,232.5,232.49,5.0]
[1732632449285,25.75375015,232.55,232.54,5.0]
[1732632449599,25.75375015,232.55,232.52,5.0]
[1732632449780,25.75375015,232.53,232.49,5.0]
[1732632450091,25.75375015,232.53,232.51,5.0]
[1732632450295,4.301,232.5,232.49,5.0]
[1732632450494,49.53063415,232.51,232.5,5.0]
[1732632450697,4.301,232.5,232.48,5.0]
[1732632451101,49.53063415,232.51,232.5,5.0]
[1732632451475,25.75375015,232.55,232.52,5.0]
[1732632451676,25.75375015,232.53,232.52,5.0]
[1732632451997,25.75375015,232.53,232.49,5.0]
[1732632452208,25.75375015,232.5,232.49,5.0]
[1732632452706,30.05455015,232.52,232.49,5.0]
[1732632453188,25.75375015,232.52,232.51,10.0]
[1732632453390,25.75375015,232.54,232.51,10.0]
[1732632453587,30.05405015,232.54,232.51,10.0]
[1732632453912,25.75375015,232.54,232.53,5.0]
[1732632454076,25.75375015,232.54,232.53,10.0]
[1732632454481,25.75375015,232.6,232.55,10.0]
[1732632454677,25.75375015,232.63,232.61,5.0]
[1732632454978,25.75375015,232.63,232.62,5.0]
[1732632455191,25.75375015,232.63,232.55,25.75375015]
[1732632455192,25.75375015,232.63,232.59,5.0]
[1732632455479,25.75375015,232.6,232.57,10.0]
[1732632455697,25.75375015,232.58,232.57,10.0]
[1732632456195,25.75375015,232.58,232.55,5.0]
[1732632456388,30.05325015,232.58,232.55,10.0]
[1732632456696,25.75375015,232.56,232.55,5.0]
[1732632456889,25.75375015,232.56,232.51,10.0]
[1732632457200,25.75375015,232.52,232.49,10.0]
[1732632457397,25.75375015,232.52,232.49,5.0]
[1732632457700,25.75375015,232.5,232.49,10.0]
[1732632457905,25.75375015,232.5,232.49,5.0]
[1732632458715,30.05475015,232.5,232.49,5.0]
[1732632459399,4.3008,232.52,232.49,10.0]
[1732632459603,30.05455015,232.52,232.51,10.0]
[1732632460117,30.05455015,232.52,232.51,5.0]
[1732632460290,30.05455015,232.52,232.49,5.0]
[1732632460501,40.80735015,232.5,232.45,5.0]
[1732632460795,25.75375015,232.46,232.45,5.0]
[1732632461530,25.75375015,232.48,232.45,5.0]
[1732632461694,4.301,232.5,232.49,5.0]
[1732632461893,25.75375015,232.52,232.49,10.0]
[1732632462199,25.75375015,232.52,232.51,10.0]
[1732632462598,30.05445015,232.52,232.51,10.0]
[1732632463616,30.05445015,232.52,232.51,5.0]
[1732632463803,30.05445015,232.52,232.47,5.0]
[1732632464005,25.75375015,232.48,232.47,10.0]
[1732632464242,25.75375015,232.48,232.45,5.0]
[1732632464807,30.05515015,232.48,232.45,5.0]
[1732632465315,30.05515015,232.48,232.47,10.0]
[1732632465530,30.05515015,232.48,232.47,5.0]
[1732632465921,30.05515015,232.48,232.47,10.0]
[1732632466438,4.3014,232.48,232.47,10.0]
[1732632466625,30.05515015,232.48,232.47,10.0]
[1732632467430,30.05475015,232.5,232.47,10.0]
[1732632467937,10.7517,232.52,232.51,10.0]
[1732632467938,30.05455015,232.52,232.51,10.0]
[1732632468238,125.89352349,232.75,232.55,5.0]
[1732632468239,25.75375015,232.57,232.55,5.0]
[1732632468414,25.75375015,232.57,232.54,5.0]
[1732632468616,25.75375015,232.55,232.53,5.0]
[1732632468820,25.75375015,232.57,232.56,5.0]
[1732632469008,25.75375015,232.59,232.56,5.0]
[1732632469210,25.75375015,232.59,232.57,5.0]
[1732632469427,4.2995,232.58,232.57,5.0]
[1732632470014,4.2995,232.58,232.52,5.0]
[1732632470311,25.75375015,232.53,232.52,5.0]
[1732632470733,25.75375015,232.55,232.52,5.0]
[1732632471315,30.05425015,232.53,232.52,5.0]
[1732632471838,25.75375015,232.54,232.53,5.0]
[1732632472033,25.75375015,232.54,232.51,5.0]
[1732632472229,25.75375015,232.54,232.53,10.0]
[1732632473238,25.75375015,232.54,232.51,5.0]
[1732632473439,4.3005,232.53,232.52,5.0]
[1732632474638,4.3005,232.53,232.51,5.0]
[1732632474931,4.3005,232.53,232.52,5.0]
[1732632475140,4.3005,232.53,232.51,5.0]
[1732632475520,23.776884,232.58,232.54,5.0]
[1732632475730,15.99470983,232.55,232.54,5.0]
[1732632476444,23.776884,232.54,232.49,5.0]
[1732632476765,15.99470983,232.5,232.48,5.0]
[1732632476934,15.99470983,232.5,232.46,5.0]
[1732632477139,15.99470983,232.48,232.47,5.0]
[1732632477440,15.99470983,232.48,232.47,10.0]
[1732632477649,20.29610983,232.48,232.47,10.0]
[1732632479352,4.3014,232.48,232.47,10.0]
[1732632479715,15.99470983,232.5,232.47,10.0]
[1732632479930,20.29540983,232.52,232.51,10.0]
[1732632480642,15.99470983,232.59,232.56,5.0]
[1732632480946,15.99470983,232.59,232.57,5.0]
[1732632481240,15.99470983,232.59,232.58,5.0]
[1732632481630,20.29370983,232.61,232.58,5.0]
[1732632481939,20.29370983,232.61,232.59,5.0]
[1732632482833,4.2988,232.62,232.61,5.0]
[1732632483139,4.2988,232.62,232.61,10.0]
[1732632484014,4.2988,232.62,232.61,5.0]
[1732632484332,23.776884,232.61,232.57,5.0]
[1732632484527,23.776884,232.57,232.54,5.0]
[1732632484833,25.58859435,232.55,232.54,5.0]
[1732632485219,25.58859435,232.55,232.54,10.0]
[1732632485415,25.58859435,232.55,232.54,5.0]
[1732632485619,25.58859435,232.55,232.54,10.0]
[1732632485819,25.58859435,232.55,232.54,5.0]
[1732632486053,29.88869435,232.55,232.54,10.0]
[1732632487142,29.88869435,232.55,232.54,5.0]
[1732632487335,29.88869435,232.55,232.54,10.0]
[1732632487534,29.88869435,232.55,232.51,10.0]
[1732632487743,25.58859435,232.53,232.51,10.0]
[1732632488043,4.3007,232.52,232.51,5.0]
[1732632488219,4.3007,232.52,232.49,5.0]
[1732632488220,23.776884,232.51,232.49,10.0]
[1732632488426,23.776884,232.51,232.5,5.0]
[1732632488630,49.36547835,232.51,232.49,5.0]
[1732632489030,49.36547835,232.51,232.48,5.0]
[1732632489254,25.58859435,232.49,232.48,5.0]
[1732632489435,23.776884,232.48,232.45,10.0]
[1732632489748,23.776884,232.48,232.45,5.0]
[1732632489749,25.58859435,232.46,232.45,5.0]
[1732632490042,4.302,232.45,232.43,10.0]
[1732632490831,4.302,232.45,232.41,10.0]
[1732632490832,23.776884,232.43,232.41,10.0]
[1732632491030,23.776884,232.41,232.37,10.0]
[1732632491247,25.58859435,232.38,232.37,10.0]
[1732632491848,25.58859435,232.38,232.37,5.0]
[1732632492044,29.89179435,232.38,232.37,5.0]
[1732632492239,29.89179435,232.38,232.37,10.0]
[1732632492427,4.3032,232.38,232.37,5.0]
[1732632492759,25.58859435,232.4,232.37,5.0]
[1732632492760,29.89159435,232.4,232.39,5.0]
[1732632493050,4.3016,232.47,232.44,5.0]
[1732632493227,23.776884,232.46,232.44,5.0]
[1732632493734,25.58859435,232.48,232.47,10.0]
[1732632494128,29.88999435,232.48,232.47,10.0]
[1732632494430,4.3014,232.48,232.47,10.0]
[1732632494829,29.88999435,232.48,232.47,10.0]
[1732632496451,23.776884,232.47,232.45,5.0]
[1732632496749,49.36547835,232.46,232.45,5.0]
[1732632497252,23.776884,232.45,232.43,10.0]
[1732632498436,28.078984,232.44,232.43,10.0]
[1732632498936,25.58859435,232.49,232.48,5.0]
[1732632499333,4.3005,232.53,232.52,10.0]
[1732632499542,4.3005,232.53,232.48,10.0]
[1732632499741,25.58859435,232.49,232.48,5.0]
[1732632499945,25.58859435,232.49,232.46,10.0]
[1732632500152,21.0399,232.41,232.14,6.0087]
[1732632500339,25.58859435,232.24,232.14,31.59729435]
[1732632500539,29.89329435,232.3,232.2,25.58859435]
[1732632500759,21.0399,232.41,232.27,25.58859435]
[1732632500963,25.58859435,232.37,232.27,25.58859435]
[1732632501165,25.58859435,232.33,232.22,15.3965]
[1732632501352,25.58859435,232.37,232.27,6.0087]
[1732632501533,25.58859435,232.35,232.27,6.0087]
[1732632502552,25.58859435,232.29,232.22,6.0087]
[1732632502766,25.58859435,232.25,232.17,6.0087]
[1732632502949,25.58859435,232.23,232.17,6.0087]
[1732632503136,25.58859435,232.25,232.17,6.0087]
[1732632503635,25.58859435,232.27,232.17,6.0087]
[1732632503964,25.58859435,232.27,232.18,25.58859435]
[1732632504273,20.0,232.3,232.18,25.58859435]
[1732632504561,25.58859435,232.27,232.18,25.58859435]
[1732632504735,4.3049,232.29,232.18,25.58859435]
[1732632504942,23.776884,232.33,232.22,25.58859435]
[1732632504943,29.89319435,232.31,232.22,25.58859435]
[1732632505346,29.89319435,232.31,232.17,6.0087]
[1732632505347,25.58859435,232.29,232.2,25.58859435]
[1732632505552,25.58859435,232.29,232.18,25.58859435]
[1732632505765,25.58859435,232.2,232.17,6.0087]
[1732632505952,25.58859435,232.2,232.12,6.0087]
[1732632506146,25.58859435,232.18,232.12,6.0087]
[1732632506356,29.89569435,232.18,232.12,6.0087]
[1732632506652,29.89569435,232.18,232.04,13.27892944]
[1732632506653,4.3071,232.18,232.05,6.0087]
[1732632506965,4.3071,232.18,232.04,13.27892944]
[1732632506966,25.58859435,232.07,232.04,13.27892944]
[1732632508259,23.776884,232.17,232.04,13.27892944]
[1732632508452,25.58859435,232.05,232.04,13.27892944]
[1732632509056,49.36547835,232.05,232.04,13.27892944]
[1732632509363,20.0,232.02,232.01,0.5243705]
[1732632509540,69.36547835,232.02,232.0,83.75745689]
[1732632509742,23.776884,232.01,232.0,83.75745689]
[1732632511359,49.36547835,232.01,232.0,83.75745689]
[1732632512368,25.58859435,232.01,232.0,83.75745689]
[1732632512567,25.58859435,232.07,232.0,83.75745689]
[1732632512771,25.58859435,232.07,232.0,109.34605124]
[1732632512964,25.58859435,232.05,232.0,83.75745689]
[1732632513271,25.58859435,232.01,232.0,83.75745689]
[1732632513970,49.36547835,232.01,232.0,83.75745689]
[1732632514473,53.67557835,232.01,232.0,83.75745689]
[1732632517483,53.67557835,232.01,232.0,59.98745689]
[1732632517974,5.0,231.92,231.78,0.5243705]
[1732632518181,25.58859435,231.82,231.78,0.5243705]
[1732632518385,25.58859435,231.8,231.78,0.5243705]
[1732632518678,46.75789435,231.8,231.78,0.5243705]
[1732632518853,25.58859435,231.8,231.78,0.5243705]
[1732632519054,29.90279435,231.8,231.78,0.5243705]
[1732632519571,26.1693,232.01,231.79,48.13599435]
[1732632519749,25.58859435,231.89,231.79,22.5474]
[1732632519955,25.58859435,231.84,231.79,22.5474]
[1732632520382,25.58859435,231.86,231.79,22.5474]
[1732632520673,25.58859435,231.94,231.85,25.58859435]
[1732632520876,25.58859435,231.92,231.83,25.58859435]
[1732632521814,25.58859435,231.92,231.85,25.58859435]
[1732632522078,25.58859435,231.95,231.85,25.58859435]
[1732632522291,25.58859435,231.99,231.91,25.58859435]
[1732632522575,25.58859435,231.97,231.87,25.58859435]
[1732632522781,25.58859435,231.95,231.87,25.58859435]
[1732632522959,4.3114,231.94,231.85,25.58859435]
[1732632523464,25.58859435,231.91,231.81,25.58859435]
[1732632523883,25.58859435,231.91,231.83,25.58859435]
[1732632524185,4.3114,231.94,231.43,5.0]
[1732632524186,23.776884,231.66,231.43,5.0]
[1732632524352,25.58859435,231.69,231.6,25.58859435]
[1732632524784,25.58859435,231.69,231.58,25.58859435]
[1732632525079,29.90469435,231.69,231.58,25.58859435]
[1732632525379,25.58859435,231.84,231.58,25.58859435]
[1732632525380,25.58859435,231.8,231.67,25.58859435]
[1732632525581,25.58859435,231.8,231.7,25.58859435]
[1732632525789,25.58859435,231.72,231.63,25.58859435]
[1732632525965,25.58859435,231.75,231.67,25.58859435]
[1732632526167,25.58859435,231.75,231.65,25.58859435]
[1732632526874,4.3151,231.74,231.65,25.58859435]
[1732632528092,25.58859435,231.72,231.63,25.58859435]
[1732632528388,25.58859435,231.7,231.61,25.58859435]
[1732632528684,25.58859435,231.68,231.59,42.10939435]
[1732632528896,25.58859435,231.7,231.61,25.58859435]
[1732632529063,25.58859435,231.68,231.59,42.10939435]
[1732632529268,20.0,231.65,231.59,42.10939435]
[1732632529457,4.3151,231.74,231.63,25.58859435]
[1732632529660,20.0,231.69,231.63,25.58859435]
[1732632530060,25.58859435,231.76,231.67,25.58859435]
[1732632530361,29.90209435,231.83,231.73,25.58859435]
[1732632530788,25.58859435,231.81,231.73,25.58859435]
[1732632531181,25.58859435,231.79,231.71,25.58859435]
[1732632531494,29.90289435,231.79,231.71,25.58859435]
[1732632531788,20.0,231.76,231.69,25.58859435]
[1732632532284,25.58859435,231.75,231.67,25.58859435]
[1732632532592,25.58859435,231.75,231.63,25.58859435]
[1732632532593,25.58859435,231.73,231.63,25.58859435]
[1732632533098,20.0,231.72,231.69,25.58859435]
[1732632533279,25.58859435,231.84,231.71,25.58859435]
[1732632533280,29.90259435,231.81,231.71,25.58859435]
[1732632533475,4.3136,231.83,231.77,25.58859435]
[1732632534090,4.3128,231.87,231.81,25.58859435]
[1732632534317,25.58859435,231.85,231.75,25.58859435]
[1732632534499,25.58859435,231.83,231.75,25.58859435]
[1732632535205,24.3128,231.87,231.75,25.58859435]
[1732632535501,4.3133,231.84,231.75,25.58859435]
[1732632535809,4.3133,231.84,231.77,25.58859435]
[1732632536007,25.58859435,231.91,231.83,25.58859435]
[1732632536388,25.58859435,231.89,231.81,25.58859435]
[1732632537079,4.3125,231.88,231.81,25.58859435]
[1732632537301,20.0,231.86,231.81,25.58859435]
[1732632539109,31.5537,231.98,231.85,25.58859435]
[1732632539110,20.0,231.87,231.85,25.58859435]
[1732632539285,25.58859435,231.93,231.85,25.58859435]
[1732632539792,25.58859435,231.91,231.83,25.58859435]
[1732632540283,4.3122,231.9,231.83,25.58859435]
[1732632540483,25.58859435,231.93,231.85,25.58859435]
[1732632540693,25.58859435,231.95,231.87,25.58859435]
[1732632540999,4.3109,231.97,231.89,25.58859435]
[1732632541212,29.89949435,231.97,231.89,25.58859435]
[1732632541392,29.89949435,231.97,231.87,25.58859435]
[1732632541796,29.89949435,231.97,231.89,25.58859435]
[1732632541987,25.58859435,232.02,231.93,25.58859435]
[1732632542203,10.7748,232.03,231.84,30.58859435]
[1732632542204,4.3096,232.04,231.97,25.58859435]
[1732632542393,10.7725,232.08,231.99,25.58859435]
[1732632542394,27.79528116,232.08,231.99,25.58859435]
[1732632542713,4.3093,232.06,231.99,25.58859435]
[1732632542904,4.3093,232.06,231.87,9.3127]
[1732632542905,29.89789435,232.06,231.97,25.58859435]
[1732632543104,4.3093,232.06,231.99,25.58859435]
[1732632543315,4.3093,232.06,231.9,10.0]
[1732632543316,25.58859435,232.06,231.97,25.58859435]
[1732632543690,25.58859435,232.04,231.95,25.58859435]
[1732632544119,25.58859435,232.0,231.91,25.58859435]
[1732632544366,25.58859435,232.0,231.87,4.3127]
[1732632544367,25.58859435,231.98,231.89,25.58859435]
[1732632544511,25.58859435,232.0,231.91,25.58859435]
[1732632545118,25.58859435,231.98,231.91,25.58859435]
[1732632545313,25.58859435,231.96,231.87,25.58859435]
[1732632545516,25.58859435,231.94,231.85,25.58859435]
[1732632545819,25.58859435,231.94,231.8,6.4982]
[1732632545820,25.58859435,231.96,231.87,25.58859435]
[1732632546199,23.776884,232.04,231.91,25.58859435]
[1732632546416,20.0,231.97,231.91,25.58859435]
[1732632547206,9.69495858,232.09,232.06,25.58859435]
[1732632547500,14.00365858,232.09,232.02,25.58859435]
[1732632547700,39.59225293,232.09,232.01,6.4982]
[1732632547918,39.59225293,232.09,231.99,16.1532]
[1732632547919,29.77525858,232.09,231.9,6.4982]
[1732632548133,25.58859435,232.0,231.9,32.08679435]
[1732632548538,25.58859435,232.0,231.9,6.4982]
[1732632548539,25.58859435,231.98,231.9,6.4982]
[1732632548707,25.58859435,231.96,231.9,6.4982]
[1732632548908,25.58859435,231.96,231.79,5.0]
[1732632548909,25.58859435,231.92,231.82,6.4982]
[1732632549112,15.0861,232.0,231.87,25.58859435]
[1732632549323,15.0861,232.0,231.82,6.4982]
[1732632549324,29.89889435,232.0,231.91,25.58859435]
[1732632549521,20.0,231.97,231.91,25.58859435]
[1732632549729,20.0,231.97,231.89,25.58859435]
[1732632549921,25.58859435,231.94,231.85,25.58859435]